fUST/lending_fUST_20251025
["ID","MTS","AMOUNT","RATE_DAILY","PERIOD"]
[392346817,1761384644455,-644.185892,0.00019178,2]
[392346818,1761384644464,-162.63982,0.00019178,2]
[392346819,1761384644474,-644.185892,0.00019178,2]
[392346820,1761384644484,-151.0,0.00019178,2]
[392346821,1761384644493,-151.0,0.00019178,2]
[392346822,1761384644503,-151.0,0.00019178,2]
[392346823,1761384644513,-151.0,0.00019178,2]
[392346824,1761384644523,-151.0,0.00019178,2]
[392346825,1761384644532,-500.0,0.00019178,2]
[392346826,1761384644541,-228.384325,0.00019178,2]
[392346827,1761384644551,-151.0,0.00019178,2]
[392346828,1761384644561,-151.0,0.00019178,2]
[392346829,1761384644571,-151.0,0.00019178,2]
[392346830,1761384644580,-151.0,0.00019178,2]
[392346831,1761384644589,-301.583652,0.00019178,2]
[392346832,1761384644598,-159.782938,0.00019178,2]
[392346833,1761384644609,-151.0,0.00019178,2]
[392346834,1761384644619,-151.0,0.00019178,2]
[392346835,1761384644628,-183.935844,0.00019178,2]
[392346836,1761384644638,-167.588479,0.00019178,2]
[392346837,1761384644648,-151.0,0.00019178,2]
[392346838,1761384644657,-151.0,0.00019178,2]
[392346839,1761384644667,-151.0,0.00019178,2]
[392346840,1761384644677,-429.15518,0.00019178,2]
[392346841,1761384644686,-429.15518,0.00019178,2]
[392346842,1761384644695,-429.15518,0.00019178,2]
[392346843,1761384644704,-153.253742,0.00019178,2]
[392346844,1761384644713,-429.15518,0.00019178,2]
[392346845,1761384644723,-429.15518,0.00019178,2]
[392346846,1761384644732,-429.15518,0.00019178,2]
[392346847,1761384644742,-429.15518,0.00019178,2]
[392346848,1761384644751,-429.15518,0.00019178,2]
[392346849,1761384644763,-429.15518,0.00019178,2]
[392346850,1761384644772,-429.15518,0.00019178,2]
[392346851,1761384644781,-429.15518,0.00019178,2]
[392346852,1761384644791,-429.15518,0.00019178,2]
[392346853,1761384644800,-429.15518,0.00019178,2]
[392346854,1761384644810,-429.15518,0.00019178,2]
[392346855,1761384644819,-429.15518,0.00019178,2]
[392346856,1761384644828,-429.15518,0.00019178,2]
[392346857,1761384644837,-429.15518,0.00019178,2]
[392346858,1761384644847,-429.15518,0.00019178,2]
[392346859,1761384644856,-429.15518,0.00019178,2]
[392346860,1761384644866,-429.15517,0.00019178,2]
[392346861,1761384644875,-151.0,0.00019178,2]
[392346862,1761384644884,-151.0,0.00019178,2]
[392346863,1761384644894,-150.0,0.00019178,2]
[392346864,1761384644904,-3199.5480066,0.00019239,2]
[392346865,1761384644913,-18825.3444599,0.00019239,2]
[392346866,1761384644923,-151.0,0.00019239,7]
[392346867,1761384644933,-718.390332,0.00019239,7]
[392346868,1761384644943,-718.390332,0.00019239,7]
[392346869,1761384644952,-151.0,0.00019239,7]
[392346870,1761384644962,-718.390332,0.00019239,7]
[392346871,1761384644971,-3928.001855,0.00019239,7]
[392346872,1761384644980,-151.0,0.00019239,7]
[392346873,1761384644989,-718.390332,0.00019239,7]
[392346874,1761384644999,-3928.001855,0.00019239,7]
[392346875,1761384645008,-3928.001855,0.00019239,7]
[392346876,1761384645018,-3928.001855,0.00019239,7]
[392346877,1761384645028,-151.0,0.00019239,7]
[392346878,1761384645038,-151.0,0.00019239,7]
[392346879,1761384645048,-151.0,0.00019255,7]
[392346880,1761384645057,-151.0,0.00019255,7]
[392346881,1761384645066,-151.0,0.00019255,7]
[392346882,1761384645075,-151.0,0.00019255,7]
[392346883,1761384645084,-644.185892,0.00019255,7]
[392346884,1761384645093,-644.185892,0.00019255,7]
[392346885,1761384645103,-644.185892,0.00019255,7]
[392346886,1761384645112,-644.185892,0.00019255,7]
[392346887,1761384645121,-644.185892,0.00019255,7]
[392346888,1761384645130,-644.185892,0.00019255,7]
[392346889,1761384645140,-644.185892,0.00019255,7]
[392346890,1761384645149,-644.185892,0.00019255,7]
[392346891,1761384645158,-644.185892,0.00019255,7]
[392346892,1761384645167,-644.185892,0.00019255,7]
[392346893,1761384645177,-644.185892,0.00019255,7]
[392346894,1761384645186,-644.185892,0.00019255,7]
[392346895,1761384645195,-644.185892,0.00019255,7]
[392346896,1761384645204,-644.185892,0.00019255,7]
[392346897,1761384645214,-644.185892,0.00019255,7]
[392346898,1761384645224,-644.185901,0.00019255,7]
[392346899,1761384645235,-151.0,0.00019255,7]
[392346900,1761384645245,-166.5409,0.00019255,7]
[392346901,1761384645255,-152.890082,0.00019255,7]
[392346902,1761384645265,-151.0,0.00019255,7]
[392346903,1761384645276,-151.0,0.00019255,7]
[392346904,1761384645287,-151.0,0.00019255,7]
[392346905,1761384645297,-151.0,0.00019255,7]
[392346906,1761384645306,-151.0,0.00019255,7]
[392346907,1761384645317,-151.0,0.00019255,7]
[392346908,1761384645327,-718.390332,0.00019255,7]
[392346909,1761384645337,-718.390332,0.00019255,7]
[392346910,1761384645346,-718.390332,0.00019255,7]
[392346911,1761384645356,-718.390332,0.00019255,7]
[392346912,1761384645365,-718.390332,0.00019255,7]
[392346913,1761384645375,-718.390332,0.00019255,7]
[392346914,1761384645383,-718.390332,0.00019255,7]
[392346915,1761384645392,-718.390332,0.00019255,7]
[392346916,1761384645401,-151.0,0.00019255,7]
[392346917,1761384645410,-151.0,0.00019255,7]
[392346918,1761384645420,-718.390332,0.00019255,7]
[392346919,1761384645429,-151.0,0.00019255,7]
[392346920,1761384645438,-718.390332,0.00019255,7]
[392346921,1761384645447,-151.0,0.00019255,7]
[392346922,1761384645457,-3928.001855,0.00019255,7]
[392346923,1761384645466,-718.390332,0.00019255,7]
[392346924,1761384645476,-3928.001855,0.00019255,7]
[392346925,1761384645485,-3928.001855,0.00019255,7]
[392346926,1761384645496,-718.390332,0.00019255,7]
[392346927,1761384645506,-3928.001855,0.00019255,7]
[392346928,1761384645515,-151.0,0.00019255,7]
[392346929,1761384645524,-3928.001855,0.00019255,7]
[392346930,1761384645533,-718.390332,0.00019255,7]
[392346931,1761384645542,-151.0,0.00019255,7]
[392346932,1761384645551,-3928.001855,0.00019255,7]
[392346933,1761384645561,-718.390332,0.00019255,7]
[392346934,1761384645571,-3928.001855,0.00019255,7]
[392346935,1761384645580,-718.390332,0.00019255,7]
[392346936,1761384645589,-3928.001855,0.00019255,7]
[392346937,1761384645599,-718.39033034,0.00019255,7]
[392346938,1761384645608,-3928.001855,0.00019255,7]
[392346939,1761384645618,-3928.001855,0.00019255,7]
[392346940,1761384645627,-3928.001855,0.00019255,7]
[392346941,1761384645636,-3928.001855,0.00019255,7]
[392346942,1761384645645,-3928.001855,0.00019255,7]
[392346943,1761384645655,-3928.001855,0.00019255,7]
[392346944,1761384645664,-3928.001855,0.00019255,7]
[392346945,1761384645674,-3928.00185105,0.00019255,7]
[392346946,1761384645683,-151.0,0.00019255,7]
[392346947,1761384645692,-151.0,0.00019255,7]
[392346948,1761384645701,-151.0,0.00019255,7]
[392346949,1761384645710,-287.988029,0.00019255,7]
[392346950,1761384645719,-5018.09441969,0.00019256,2]
[392346951,1761384645728,-151.445099,0.00019256,7]
[392346952,1761384645737,-151.0,0.00019256,7]
[392346953,1761384645746,-151.0,0.00019256,7]
[392346954,1761384645755,-209.37164,0.00019256,7]
[392346955,1761384645765,-152.416807,0.00019256,7]
[392346956,1761384645774,-374.154479,0.00019256,7]
[392346957,1761384645784,-374.154479,0.00019256,7]
[392346958,1761384645793,-374.154479,0.00019256,7]
[392346959,1761384645802,-374.154479,0.00019256,7]
[392346960,1761384645811,-374.154479,0.00019256,7]
[392346961,1761384645820,-374.154479,0.00019256,7]
[392346962,1761384645829,-374.154479,0.00019256,7]
[392346963,1761384645839,-374.154479,0.00019256,7]
[392346964,1761384645848,-374.154479,0.00019256,7]
[392346965,1761384645860,-374.154479,0.00019256,7]
[392346969,1761384646044,-374.154479,0.00019256,7]
[392346970,1761384646095,-151.0,0.00019256,7]
[392346971,1761384646106,-374.154479,0.00019256,7]
[392346972,1761384646116,-151.0,0.00019256,7]
[392346973,1761384646125,-374.154479,0.00019256,7]
[392346974,1761384646135,-374.154479,0.00019256,7]
[392346975,1761384646145,-374.154479,0.00019256,7]
[392346976,1761384646154,-374.154479,0.00019256,7]
[392346977,1761384646163,-374.154479,0.00019256,7]
[392346978,1761384646172,-374.154479,0.00019256,7]
[392346979,1761384646181,-374.154479,0.00019256,7]
[392346980,1761384646190,-374.154471,0.00019256,7]
[392346981,1761384646199,-151.0,0.00019256,7]
[392346982,1761384646208,-151.0,0.00019256,7]
[392346983,1761384646217,-151.0,0.00019256,7]
[392346984,1761384646226,-500.0,0.00019256,2]
[392346985,1761384646235,-500.0,0.00019256,2]
[392346986,1761384646244,-500.0,0.00019256,2]
[392346987,1761384646254,-188.38,0.00019265,2]
[392346988,1761384646262,-153.413803,0.00019265,7]
[392346989,1761384646272,-151.0,0.00019265,7]
[392346990,1761384646286,-151.0,0.00019265,7]
[392346991,1761384646295,-151.0,0.00019265,7]
[392346993,1761384646304,-154.722385,0.00019265,7]
[392346994,1761384646313,-151.0,0.00019265,7]
[392346995,1761384646323,-173.039843,0.00019265,7]
[392346996,1761384646332,-158.845657,0.00019265,7]
[392346997,1761384646341,-229.605126,0.00019265,7]
[392346998,1761384646351,-229.605126,0.00019265,7]
[392347000,1761384646361,-229.605126,0.00019265,7]
[392347002,1761384646370,-229.605126,0.00019265,7]
[392347004,1761384646379,-229.605126,0.00019265,7]
[392347005,1761384646388,-229.605126,0.00019265,7]
[392347006,1761384646397,-229.605126,0.00019265,7]
[392347007,1761384646407,-229.605126,0.00019265,7]
[392347008,1761384646416,-229.605126,0.00019265,7]
[392347009,1761384646425,-229.605126,0.00019265,7]
[392347010,1761384646435,-229.605126,0.00019265,7]
[392347011,1761384646444,-151.0,0.00019265,7]
[392347012,1761384646453,-151.0,0.00019265,7]
[392347013,1761384646463,-262.198681,0.00019265,7]
[392347015,1761384646472,-229.605126,0.00019265,7]
[392347016,1761384646481,-229.605126,0.00019265,7]
[392347017,1761384646491,-229.605126,0.00019265,7]
[392347018,1761384646500,-229.605126,0.00019265,7]
[392347019,1761384646509,-229.605126,0.00019265,7]
[392347020,1761384646518,-229.605126,0.00019265,7]
[392347022,1761384646527,-229.605126,0.00019265,7]
[392347024,1761384646536,-229.605126,0.00019265,7]
[392347025,1761384646546,-229.605122,0.00019265,7]
[392347027,1761384646555,-152.291808,0.00019265,7]
[392347029,1761384646564,-151.0,0.00019265,7]
[392347031,1761384646574,-151.0,0.00019265,7]
[392347033,1761384646583,-172.21837372,0.00019265,7]
[392347035,1761384646592,-155.035271,0.00019266,7]
[392347037,1761384646601,-153.361952,0.00019266,7]
[392347039,1761384646611,-151.0,0.00019266,7]
[392347041,1761384646620,-151.0,0.00019266,7]
[392347043,1761384646629,-155.947052,0.00019266,7]
[392347045,1761384646638,-151.0,0.00019268,7]
[392347047,1761384646647,-155.396801,0.00019268,7]
[392347049,1761384646657,-1000.0,0.00019268,2]
[392347051,1761384646666,-1000.0,0.00019268,2]
[392347053,1761384646675,-1000.0,0.00019268,2]
[392347055,1761384646685,-1000.0,0.00019268,2]
[392347057,1761384646695,-1000.0,0.00019268,2]
[392347059,1761384646705,-1000.0,0.00019268,2]
[392347061,1761384646714,-1000.0,0.00019268,2]
[392347063,1761384646723,-1000.0,0.00019268,2]
[392347065,1761384646733,-1000.0,0.00019268,2]
[392347067,1761384646742,-1000.0,0.00019269,2]
[392347069,1761384646751,-699.33056489,0.00019269,2]
[392347071,1761384646760,-151.0,0.0001927,7]
[392347073,1761384646769,-151.0,0.0001927,7]
[392347075,1761384646779,-574.96011792,0.00019273,2]
[392347077,1761384646788,-391.24355983,0.00019273,2]
[392347079,1761384646798,-500.0,0.00019273,2]
[392347081,1761384646807,-500.0,0.00019273,2]
[392347083,1761384646816,-508.33668408,0.00019273,2]
[392347085,1761384646826,-501.85118933,0.00019273,2]
[392347087,1761384646836,-500.0,0.00019273,2]
[392347089,1761384646845,-500.0,0.00019273,2]
[392347091,1761384646854,-500.0,0.00019273,2]
[392347093,1761384646863,-500.0,0.00019273,2]
[392347095,1761384646872,-500.0,0.00019273,2]
[392347096,1761384646882,-500.25564476,0.00019273,2]
[392347098,1761384646891,-500.0,0.00019273,2]
[392347100,1761384646900,-502.04297537,0.00019273,2]
[392347102,1761384646909,-504.62036654,0.00019273,2]
[392347104,1761384646919,-500.0,0.00019273,2]
[392347106,1761384646928,-422.38108091,0.00019273,2]
[392347108,1761384646937,-501.50245371,0.00019273,2]
[392347110,1761384646947,-501.79374759,0.00019273,2]
[392347112,1761384646956,-500.0,0.00019273,2]
[392347114,1761384646965,-501.79315512,0.00019273,2]
[392347115,1761384646974,-506.5447106,0.00019273,2]
[392347116,1761384646984,-504.16214622,0.00019273,2]
[392347117,1761384646994,-502.84875017,0.00019273,2]
[392347118,1761384647004,-500.75678277,0.00019273,2]
[392347119,1761384647014,-500.0,0.00019273,2]
[392347120,1761384647023,-334.81497921,0.00019273,2]
[392347121,1761384647032,-502.5136939,0.00019273,2]
[392347122,1761384647041,-500.0,0.00019273,2]
[392347123,1761384647050,-500.0,0.00019273,2]
[392347124,1761384647060,-1335.28281809,0.00019305,2]
[392347125,1761384647069,-500.0,0.00019311,2]
[392347126,1761384647078,-500.0,0.00019311,2]
[392347127,1761384647088,-544.20664206,0.00019311,2]
[392347128,1761384647097,-151.54089796,0.00019315,2]
[392347129,1761384647107,-5018.09441969,0.00019348,2]
[392347130,1761384647116,-500.0,0.00019366,2]
[392347131,1761384647126,-500.0,0.00019366,2]
[392347132,1761384647136,-300.0,0.00019369,2]
[392347133,1761384647146,-300.0,0.00019369,2]
[392347134,1761384647155,-300.0,0.00019369,2]
[392347135,1761384647166,-300.0,0.00019369,2]
[392347136,1761384647176,-300.0,0.00019369,2]
[392347137,1761384647186,-300.0,0.00019369,2]
[392347138,1761384647195,-300.0,0.00019369,2]
[392347139,1761384647205,-300.0,0.00019369,2]
[392347140,1761384647216,-300.0,0.00019369,2]
[392347141,1761384647226,-300.0,0.00019369,2]
[392347142,1761384647235,-300.0,0.00019369,2]
[392347143,1761384647247,-300.0,0.00019369,2]
[392347144,1761384647256,-300.0,0.00019369,2]
[392347145,1761384647267,-300.0,0.00019369,2]
[392347146,1761384647279,-300.0,0.00019369,2]
[392347147,1761384647289,-600.0,0.00019369,2]
[392347148,1761384647298,-500.0,0.0001942,2]
[392347149,1761384647308,-500.0,0.0001942,2]
[392347150,1761384647317,-5018.09441969,0.0001944,2]
[392347151,1761384647328,-500.0,0.00019452,2]
[392347152,1761384647338,-500.0,0.00019475,2]
[392347153,1761384647348,-500.0,0.00019475,2]
[392347154,1761384647359,-429529.77713296,0.000195,2]
[392347194,1761384796502,643.0,0.000301,120]
[392347206,1761385002498,49674.76892641,0.000201,9]
[392347207,1761385083319,209.97,0.00015984,2]
[392347210,1761385134976,1395.72662662,0.0001867,3]
[392347212,1761385222717,3200.7458,0.00030137,120]
[392347213,1761385298778,543.84457463,0.00018541,3]
[392347216,1761385333012,2000.0,0.00030136,120]
[392347218,1761385439274,292.02140532,0.00018541,3]
[392347255,1761385837757,-338.73420184,0.00019034,2]
[392347256,1761385837766,-650.00569452,0.00019078,2]
[392347257,1761385837776,-1200.0,0.00019172,2]
[392347258,1761385837785,-300.0,0.00019172,2]
[392347259,1761385837794,-500.0,0.00019173,2]
[392347260,1761385837803,-500.0,0.00019173,2]
[392347261,1761385837813,-500.0,0.00019173,2]
[392347264,1761385837822,-447.43605045,0.00019173,2]
[392347628,1761385845921,-52.56394955,0.00019173,2]
[392347629,1761385845931,-500.0,0.00019173,2]
[392347630,1761385845940,-62.96297954,0.00019173,2]
[392347635,1761386638067,363.18601849,0.00018121,2]
[392347636,1761386640481,653.73483329,0.00018121,2]
[392347637,1761386642605,1162.19525918,0.00018121,2]
[392347638,1761386644842,351.92865788,0.00018121,2]
[392347639,1761386646550,1815.93009247,0.00018121,2]
[392347640,1761386648664,2614.93933315,0.00018121,2]
[392347641,1761386650550,402.20418043,0.00018121,2]
[392347642,1761386652598,628.44403192,0.00018121,2]
[392347643,1761386782105,538.926095,0.00013699,2]
[392347645,1761386812918,234.07590745,0.00018121,2]
[392347646,1761386814555,421.3366334,0.00018121,2]
[392347647,1761386816428,749.04290383,0.00018121,2]
[392347648,1761386818074,64.06605351,0.00018121,2]
[392347649,1761386818098,1106.31348373,0.00018121,2]
[392347650,1761386883166,218.88,0.00015984,2]
[392347652,1761386921585,163.1529479,0.00018197,2]
[392347658,1761387031995,-302.9394212,0.000189,2]
[392347659,1761387032005,-442.82163918,0.000189,2]
[392347660,1761387032014,-568.75498274,0.00018973,2]
[392347661,1761387032023,-300.0,0.00018988,2]
[392347662,1761387032033,-198.11210452,0.00018988,2]
[392347693,1761387038411,-1001.88789548,0.00018988,2]
[392347694,1761387038421,-300.0,0.00018988,2]
[392347695,1761387038430,-300.0,0.00018988,2]
[392347696,1761387038440,-227.93690223,0.00018989,2]
[392347697,1761387038451,-6405.25569458,0.00018989,2]
[392347698,1761387038463,-1199.33439441,0.00018989,2]
[392347699,1761387038473,-564.47577198,0.00018989,2]
[392347700,1761387038482,-307.16940439,0.00018989,2]
[392347701,1761387038492,-500.0,0.00018989,2]
[392347702,1761387038502,-181.76687751,0.00018989,2]
[392347703,1761387038511,-4105.38275226,0.0001899,2]
[392347704,1761387038522,-351.91826975,0.0001899,2]
[392347758,1761387043016,-89875.60920361,0.0001899,2]
[392347760,1761387043025,-500.0,0.00019073,2]
[392347762,1761387043035,-500.0,0.00019073,2]
[392347764,1761387043044,-500.0,0.00019073,2]
[392347766,1761387043053,-500.0,0.00019073,2]
[392347768,1761387043062,-500.0,0.00019073,2]
[392347770,1761387043072,-20850.2526857,0.00019073,2]
[392347772,1761387043081,-331.9595178,0.00019074,2]
[392347774,1761387043090,-1200.0,0.00019074,2]
[392347777,1761387043100,-200.0,0.00019075,2]
[392347779,1761387043109,-285042.17859289,0.00019078,2]
[392348132,1761387398105,347.056939,0.00018124,2]
[392348133,1761387643382,938.8492988,0.00018073,2]
[392348134,1761387664409,5000.0,0.000187,2]
[392348135,1761387672332,2225.75733057,0.000187,2]
[392348136,1761387672356,2774.24266943,0.000187,2]
[392348167,1761388029527,160.0,0.00015,2]
[392348169,1761388066936,7065.76733057,0.00018,2]
[392348170,1761388066961,4332.64878136,0.00018,2]
[392348175,1761388075321,160.0,0.0003013,120]
[392348177,1761388079901,5000.0,0.000187,2]
[392348183,1761388087734,667.36121864,0.000187,2]
[392348184,1761388087756,4332.63878136,0.000187,2]
[392348189,1761388098688,1009.01260244,0.00015,2]
[392348193,1761388104092,1095.4341788,0.000187,2]
[392348196,1761388112007,3562.9244374,0.000187,2]
[392348197,1761388112029,1437.0755626,0.000187,2]
[392348200,1761388121150,2345.48712207,0.0001,2]
[392348201,1761388122148,261.33651974,0.00015,2]
[392348204,1761388127435,4343.80724989,0.000187,2]
[392348206,1761388135945,1612.3035457,0.000187,2]
[392348207,1761388135968,3387.6964543,0.000187,2]
[392348209,1761388152419,5000.0,0.000187,2]
[392348218,1761388160325,1612.3135457,0.000187,2]
[392348219,1761388160347,3387.6864543,0.000187,2]
[392348232,1761388183933,5000.0,0.000187,2]
[392348261,1761388232209,-5221.68466082,0.00018883,2]
[392348262,1761388232219,-300.0,0.00018977,2]
[392348263,1761388232230,-1200.0,0.00018977,2]
[392348264,1761388232240,-200.0,0.00018977,2]
[392348265,1761388232250,-156887.3739499,0.00018978,2]
[392348371,1761388365404,1612.3235457,0.0001852,2]
[392348372,1761388365426,1280.4736143,0.0001852,2]
[392348374,1761388683741,153.21,0.00016503,2]
[392348375,1761388760320,249.19293666,0.00018631,3]
[392348376,1761388873959,8317.13344904,0.000187,2]
[392348377,1761388873982,428.88843843,0.000187,2]
[392348378,1761388928440,416.58899434,0.0001812,2]
[392348380,1761389060004,374.52470481,0.0001812,2]
[392348381,1761389061808,208.27755801,0.0001812,2]
[392348383,1761389162287,10000.0,0.00030137,120]
[392348384,1761389169687,10000.0,0.00030137,120]
[392348415,1761389237214,250.0,0.00018293,2]
[392348427,1761389432451,-332.34078673,0.00018855,2]
[392348428,1761389432462,-1000.0,0.00018904,5]
[392348429,1761389432471,-562.52136233,0.00018921,3]
[392348430,1761389432482,-1200.0,0.00018965,2]
[392348431,1761389432491,-603.48720744,0.00018966,2]
[392348432,1761389432500,-1200.0,0.00018966,2]
[392348433,1761389432509,-151.0,0.00018967,2]
[392348434,1761389432521,-151.0,0.00018967,2]
[392348435,1761389432530,-153.96701471,0.00018967,2]
[392348436,1761389432539,-213.96859442,0.00018967,2]
[392348437,1761389432548,-300.0,0.00018967,2]
[392348438,1761389432557,-290.0,0.00018967,2]
[392348439,1761389432567,-300.0,0.00018967,2]
[392348440,1761389432576,-1385.82,0.00018968,3]
[392348441,1761389432585,-692.91,0.00018968,3]
[392348442,1761389432594,-346.45,0.00018968,3]
[392348443,1761389432603,-173.23,0.00018968,3]
[392348445,1761389432612,-519.69,0.00018968,3]
[392348447,1761389432621,-501.57952659,0.00018973,2]
[392348449,1761389432630,-498.21858259,0.00018973,2]
[392348450,1761389432639,-501.65544624,0.00018973,2]
[392348452,1761389432648,-500.0,0.00018973,2]
[392348453,1761389432657,-500.0,0.00018973,2]
[392348454,1761389432666,-501.14965788,0.00018973,2]
[392348455,1761389432675,-501.30387645,0.00018973,2]
[392348456,1761389432683,-500.0,0.00018973,2]
[392348457,1761389432692,-500.0,0.00018973,2]
[392348458,1761389432702,-500.0,0.00018973,2]
[392348459,1761389432711,-500.0,0.00018973,2]
[392348460,1761389432720,-500.0,0.00018973,2]
[392348461,1761389432729,-500.0,0.00018973,2]
[392348462,1761389432738,-500.0,0.00018973,2]
[392348463,1761389432747,-66814.09238297,0.00018978,2]
[392348610,1761389446528,-361.49018845,0.00018978,2]
[392348611,1761389700096,1500.0,0.00015,2]
[392348612,1761390097705,595.898606,0.00013699,2]
[392348617,1761390271036,278.47764027,0.0001804,2]
[392348618,1761390273162,318.26016031,0.0001804,2]
[392348619,1761390274707,497.28150049,0.0001804,2]
[392348633,1761390510078,173.528469,0.00017871,2]
[392348638,1761390632536,-200.0,0.000188,2]
[392348639,1761390632545,-500.0,0.000188,2]
[392348640,1761390632554,-1271.75,0.000188,2]
[392349116,1761390831655,150.0,0.00017379,30]
[392349117,1761390832084,150.0,0.00018207,30]
[392349118,1761390832511,150.0,0.00019035,30]
[392349119,1761390832944,176.03,0.00019862,30]
[392349120,1761390881888,1137.88,0.00030137,120]
[392349121,1761390911100,150.0,0.00017395,30]
[392349122,1761390911558,150.0,0.00018223,30]
[392349123,1761390912173,150.0,0.00019051,30]
[392349124,1761390912908,162.37,0.0001988,30]
[392349125,1761390941217,600.5114974,0.00018677,2]
[392349126,1761390943422,157.44634348,0.00018674,2]
[392349127,1761391004232,150.0,0.00017379,30]
[392349128,1761391005737,150.0,0.00018206,30]
[392349129,1761391005818,150.0,0.00019034,30]
[392349130,1761391006068,157.4,0.00019861,30]
[392349141,1761391084054,150.0,0.00017352,30]
[392349142,1761391084464,150.0,0.00018178,30]
[392349143,1761391084935,150.0,0.00019004,30]
[392349144,1761391085588,150.0,0.0001983,30]
[392349145,1761391163210,150.0,0.00017322,30]
[392349146,1761391163612,150.0,0.00018147,30]
[392349147,1761391164031,150.0,0.00018972,30]
[392349148,1761391164472,150.0,0.00019797,30]
[392349149,1761391180561,222.69835288,0.0001804,2]
[392349150,1761391182505,400.85703518,0.00018024,2]
[392349151,1761391184073,712.63472921,0.00018024,2]
[392349152,1761391185855,1112.37827263,0.00018024,2]
[392349153,1761391241862,150.0,0.00017371,30]
[392349154,1761391242443,150.0,0.00018198,30]
[392349155,1761391242820,150.0,0.00019025,30]
[392349156,1761391243225,150.0,0.00019852,30]
[392349157,1761391320067,150.0,0.00017437,30]
[392349158,1761391320408,150.0,0.00018267,30]
[392349159,1761391320864,150.0,0.00019098,30]
[392349160,1761391321292,150.0,0.00019928,30]
[392349172,1761391344669,370.15777769,0.00018024,2]
[392349173,1761391623955,480.40919792,0.00018671,2]
[392349175,1761391625959,480.40919792,0.00018687,2]
[392349183,1761391669703,420.78152403,0.00018,2]
[392349184,1761391669726,9606.63954099,0.00018,2]
[392349189,1761391702431,393.37045901,0.000176,2]
[392349190,1761391702452,1722.79269869,0.000176,2]
[392349192,1761391706656,286.81947439,0.0001,2]
[392349193,1761391736565,537.1462335,0.00017893,2]
[392349194,1761391753828,500.0,0.00018699,2]
[392349232,1761391832686,-480.40919792,0.00018703,2]
[392349234,1761391832696,-332.84021078,0.00018711,2]
[392349236,1761391832705,-480.40919792,0.00018719,2]
[392349238,1761391832714,-3057.20644054,0.0001872,2]
[392349240,1761391832723,-480.40919792,0.00018735,2]
[392349242,1761391832732,-300.0,0.00018762,2]
[392349244,1761391832741,-1200.0,0.00018762,2]
[392349246,1761391832750,-225.01604675,0.00018763,2]
[392349248,1761391832759,-292.47736828,0.00018763,2]
[392349250,1761391832768,-500.0,0.00018763,2]
[392349252,1761391832777,-500.0,0.00018763,2]
[392349254,1761391832787,-500.0,0.00018763,2]
[392349256,1761391832796,-500.0,0.00018763,2]
[392349258,1761391832805,-250.0,0.00018763,2]
[392349261,1761391832814,-416.67324139,0.00018763,2]
[392349263,1761391832822,-500.0,0.00018763,2]
[392349265,1761391832831,-500.0,0.00018763,2]
[392349267,1761391832842,-500.0,0.00018763,2]
[392349269,1761391832851,-500.0,0.00018763,2]
[392349271,1761391832861,-152.02708031,0.00018763,2]
[392349273,1761391832870,-223.04974994,0.00018763,2]
[392349275,1761391832879,-1200.0,0.00018763,2]
[392349277,1761391832888,-500.0,0.00018763,2]